Workbook

Sheet 11月份
A1: 陆 丰 市 2025 年 11 月 财 政 预 算 支 出 完 成 情 况 表
A2: 2025-11-30 | O2: 单位：万元
B3: 年 初 | C3: 年度预算计划 | F3: 累计 | G3: 占年 | H3: 上年 | I3: 比上年 | J3: 比上年 | K3: 本月 | L3: 上年 | M3: 比上年 | N3: 比上年
A4: 支 出 项 目 | B4: 预 算 | F4: 完成 | G4: 预算 | H4: 同期 | I4: 同期增 | J4: 同期增 | K4: 完成 | L4: 同月 | M4: 同月增 | N4: 同月增 | O4: 备 注
B5: 数 | C5: 上年结转 | D5: 上级补助 | E5: 本级安排 | F5: 数 | G5: % | H5: 完成 | I5: 减额 | J5: (减)% | K5: 数 | L5: 完成 | M5: 减额 | N5: (减)%
A6: 201、一般公共服务支出 | B6: 68,461 | F6: 67,797 | G6: 99.0 | H6: 76,103 | I6: -8,306 | J6: -10.9 | K6: 5,860 | L6: 4,853 | M6: 1,007 | N6: 20.8 | S6: 一般公共服务 | T6: 201 | U6: 一般公共服务支出 | V6: =VLOOKUP(T6,[1]Sheet1!A$1:C$65536,3,FALSE) -> 67797
A7: 203、国防支出 | B7: 206 | F7: 614 | G7: 298.1 | H7: 40 | I7: 574 | J7: 1435.0 | K7: 2 | L7: 0 | M7: 2 | S7: 国防 | T7: 203 | U7: 国防支出 | V7: =VLOOKUP(T7,[1]Sheet1!A$1:C$65536,3,FALSE) -> 614
A8: 204、公共安全支出 | B8: 48,122 | F8: 42,110 | G8: 87.5 | H8: 69,035 | I8: -26,925 | J8: -39.0 | K8: 5,116 | L8: 4,678 | M8: 438 | N8: 9.4 | S8: 公共安全 | T8: 204 | U8: 公共安全支出 | V8: =VLOOKUP(T8,[1]Sheet1!A$1:C$65536,3,FALSE) -> 42110
A9: 205、教育支出 | B9: 243,058 | F9: 184,073 | G9: 75.7 | H9: 167,980 | I9: 16,093 | J9: 9.6 | K9: 18,831 | L9: 24,653 | M9: -5,822 | N9: -23.6 | S9: 教育 | T9: 205 | U9: 教育支出 | V9: =VLOOKUP(T9,[1]Sheet1!A$1:C$65536,3,FALSE) -> 184073
A10: 206、科学技术支出 | B10: 1,653 | F10: 1,369 | G10: 82.8 | H10: 950 | I10: 419 | J10: 44.1 | K10: 551 | L10: 230 | M10: 321 | N10: 139.6 | S10: 科学技术 | T10: 206 | U10: 科学技术支出 | V10: =VLOOKUP(T10,[1]Sheet1!A$1:C$65536,3,FALSE) -> 1369
A11: 207、文化体育与传媒支出 | B11: 8,167 | F11: 4,399 | G11: 53.9 | H11: 3,810 | I11: 589 | J11: 15.5 | K11: 433 | L11: 304 | M11: 129 | N11: 42.4 | S11: 文化旅游体育与传媒 | T11: 207 | U11: 文化旅游体育与传媒支出 | V11: =VLOOKUP(T11,[1]Sheet1!A$1:C$65536,3,FALSE) -> 4399
A12: 208、社会保障和就业支出 | B12: 188,507 | F12: 186,458 | G12: 98.9 | H12: 175,099 | I12: 11,359 | J12: 6.5 | K12: 11,973 | L12: 10,842 | M12: 1,131 | N12: 10.4 | S12: 社会保障和就业 | T12: 208 | U12: 社会保障和就业支出 | V12: =VLOOKUP(T12,[1]Sheet1!A$1:C$65536,3,FALSE) -> 186458
A13: 210、卫生健康支出 | B13: 147,494 | F13: 127,092 | G13: 86.2 | H13: 121,521 | I13: 5,571 | J13: 4.6 | K13: 19,920 | L13: 4,094 | M13: 15,826 | N13: 386.6 | S13: 卫生健康 | T13: 210 | U13: 卫生健康支出 | V13: =VLOOKUP(T13,[1]Sheet1!A$1:C$65536,3,FALSE) -> 127092
A14: 211、节能环保支出 | B14: 4,662 | F14: 1,491 | G14: 32.0 | H14: 1,887 | I14: -396 | J14: -21.0 | K14: 289 | L14: 294 | M14: -5 | N14: -1.7 | S14: 节能环保 | T14: 211 | U14: 节能环保支出 | V14: =VLOOKUP(T14,[1]Sheet1!A$1:C$65536,3,FALSE) -> 1491
A15: 212、城乡社区支出 | B15: 17,700 | F15: 20,853 | G15: 117.8 | H15: 16,817 | I15: 4,036 | J15: 24.0 | K15: 2,459 | L15: 1,744 | M15: 715 | N15: 41.0 | S15: 城乡社区 | T15: 212 | U15: 城乡社区支出 | V15: =VLOOKUP(T15,[1]Sheet1!A$1:C$65536,3,FALSE) -> 20853
A16: 213、农林水支出 | B16: 88,375 | F16: 83,578 | G16: 94.6 | H16: 60,208 | I16: 23,370 | J16: 38.8 | K16: 9,229 | L16: 6,748 | M16: 2,481 | N16: 36.8 | S16: 农林水 | T16: 213 | U16: 农林水支出 | V16: =VLOOKUP(T16,[1]Sheet1!A$1:C$65536,3,FALSE) -> 83578
A17: 214、交通运输支出 | B17: 27,981 | F17: 18,190 | G17: 65.0 | H17: 11,074 | I17: 7,116 | J17: 64.3 | K17: 965 | L17: 1,721 | M17: -756 | N17: -43.9 | S17: 交通运输 | T17: 214 | U17: 交通运输支出 | V17: =VLOOKUP(T17,[1]Sheet1!A$1:C$65536,3,FALSE) -> 18190
A18: 215、资源勘探工业信息等支出 | B18: 543 | F18: 8,116 | G18: 1,494.7 | H18: 682 | I18: 7,434 | J18: 1090.0 | K18: 44 | L18: 31 | M18: 13 | N18: 41.9 | S18: 资源勘探工业信息等 | T18: 215 | U18: 资源勘探工业信息等支出 | V18: =VLOOKUP(T18,[1]Sheet1!A$1:C$65536,3,FALSE) -> 8116
A19: 216、商业服务业等支出 | B19: 641 | F19: 774 | G19: 120.7 | H19: 1,008 | I19: -234 | J19: -23.2 | K19: 45 | L19: 67 | M19: -22 | N19: -32.8 | S19: 商业服务业等 | T19: 216 | U19: 商业服务业等支出 | V19: =VLOOKUP(T19,[1]Sheet1!A$1:C$65536,3,FALSE) -> 774
A20: 217、金融支出 | B20: 0 | F20: 0 | H20: 1 | I20: -1 | J20: -100.0 | K20: 0 | L20: 0 | M20: 0 | S20: 金融 | T20: 217 | U20: 金融支出 | V20: =VLOOKUP(T20,[1]Sheet1!A$1:C$65536,3,FALSE) -> 0
A21: 220、自然资源海洋气象等支出 | B21: 4,180 | F21: 3,433 | G21: 82.1 | H21: 3,310 | I21: 123 | J21: 3.7 | K21: 280 | L21: 482 | M21: -202 | N21: -41.9 | S21: 自然资源海洋气象等 | T21: 220 | U21: 自然资源海洋气象等支出 | V21: =VLOOKUP(T21,[1]Sheet1!A$1:C$65536,3,FALSE) -> 3433
A22: 221、住房保障支出 | B22: 19,543 | F22: 17,617 | G22: 90.1 | H22: 20,244 | I22: -2,627 | J22: -13.0 | K22: 1,619 | L22: 64 | M22: 1,555 | N22: 2429.7 | S22: 住房保障 | T22: 221 | U22: 住房保障支出 | V22: =VLOOKUP(T22,[1]Sheet1!A$1:C$65536,3,FALSE) -> 17617
A23: 222、粮油物资储备支出 | B23: 2,650 | F23: 2,600 | G23: 98.1 | H23: 1,400 | I23: 1,200 | J23: 85.7 | K23: 0 | L23: 300 | M23: -300 | N23: -100.0 | S23: 粮油物资储备 | T23: 222 | U23: 粮油物资储备支出 | V23: =VLOOKUP(T23,[1]Sheet1!A$1:C$65536,3,FALSE) -> 2600
A24: 224、灾害防治及应急管理支出 | B24: 3,407 | F24: 4,403 | G24: 129.2 | H24: 2,295 | I24: 2,108 | J24: 91.9 | K24: 1,323 | L24: 458 | M24: 865 | N24: 188.9 | S24: 灾害防治及应急管理 | T24: 224 | U24: 灾害防治及应急管理支出 | V24: =VLOOKUP(T24,[1]Sheet1!A$1:C$65536,3,FALSE) -> 4403
A25: 232、债务付息支出 | B25: 5,469 | F25: 3,604 | G25: 65.9 | H25: 6,470 | I25: -2,866 | J25: -44.3 | K25: 0 | L25: 4,472 | M25: -4,472 | N25: -100.0 | S25: 债务付息 | T25: 232 | U25: 债务付息支出 | V25: =VLOOKUP(T25,[1]Sheet1!A$1:C$65536,3,FALSE) -> 3604
A26: 233、债务发行费用支出 | B26: 31 | F26: 152 | G26: 490.3 | H26: 28 | I26: 124 | J26: 442.9 | K26: 12 | L26: 0 | M26: 12 | S26: 债务发行费用 | T26: 233 | U26: 债务发行费用支出 | V26: =VLOOKUP(T26,[1]Sheet1!A$1:C$65536,3,FALSE) -> 152
A27: 227、预备费 | B27: 10,000 | F27: 0 | G27: 0.0 | H27: 0 | I27: 0 | K27: 0 | L27: 0 | M27: 0 | S27: 预备费
A28: 229、其他支出 | B28: 17,121 | F28: 343 | G28: 2.0 | H28: 832 | I28: -489 | J28: -58.8 | K28: 12 | L28: 6 | M28: 6 | N28: 100.0 | S28: 其他支出 | T28: 229 | U28: 其他支出 | V28: =VLOOKUP(T28,[1]Sheet1!A$1:C$65536,3,FALSE) -> 343
A29: 一、一般公共预算支出合计 | B29: 907,971 | F29: 779,066 | G29: 85.8 | H29: 740,794 | I29: 38,272 | J29: 5.2 | K29: 78,963 | L29: 66,041 | M29: 12,922 | N29: 19.6
A30: 二、政府性基金预算支出 | B30: 377,936 | F30: 180,890 | G30: 47.9 | H30: 252,148 | I30: -71,258 | J30: -28.3 | K30: 6,612 | L30: 39,949 | M30: -33,337 | N30: -83.4
A31: 三、国有资本经营支出 | B31: 619 | F31: 725 | G31: 117.1 | H31: 470 | I31: 255 | J31: 54.3 | K31: 0 | L31: 162 | M31: -162 | N31: -100.0
A32: 四、债务还本支出 | B32: 2,000 | F32: 3,562 | G32: 178.1 | H32: 51,130 | I32: -47,568 | J32: -93.0 | K32: 56 | L32: 0 | M32: 56
A33: 支出合计 | B33: 1,288,526 | F33: 964,243 | G33: 74.8 | H33: 1,044,542 | I33: -80,299 | J33: -7.7 | K33: 85,631 | L33: 106,152 | M33: -20,521 | N33: -19.3
